bitfinex/quotes_ETHUSD_20260226
["timestamp","ask_amount","ask_price","bid_price","bid_amount"]
[1772072857013,0.46984072,2049.1,2048.5,0.46399683]
[1772072858315,0.46984072,2049.1,2048.6,1.2203456]
[1772072858492,0.001,2049.2,2048.9,0.46399683]
[1772072858818,0.001,2049.2,2048.8,1.321]
[1772072859018,0.001,2049.2,2048.8,1.78499683]
[1772072859313,0.001,2049.2,2048.9,0.46399683]
[1772072860412,0.001,2049.2,2048.8,2.54117214]
[1772072860727,0.001,2049.2,2048.9,0.46399683]
[1772072862003,0.001,2049.2,2048.8,1.321]
[1772072862218,0.001,2049.2,2048.8,2.54122285]
[1772072862993,0.47084072,2049.2,2048.7,0.0011]
[1772072863201,0.001,2049.2,2048.7,1.79009683]
[1772072863429,0.47084072,2049.2,2048.7,1.3261]
[1772072863590,0.47084072,2049.2,2048.7,2.546376]
[1772072863799,0.001,2049.2,2048.7,3.01037283]
[1772072864003,0.001,2049.2,2048.7,4.04999491]
[1772072864319,0.001,2049.2,2048.9,0.46399683]
[1772072864708,0.47084072,2049.2,2048.7,1.3261]
[1772072864907,0.47084072,2049.2,2048.7,2.54637372]
[1772072866924,1.69083027,2049.2,2048.7,2.54637372]
[1772072867115,0.46984072,2049.0,2048.7,1.3261]
[1772072872029,0.47084072,2049.2,2048.7,2.54637358]
[1772072872225,1.69083744,2049.2,2048.7,1.3261]
[1772072872630,0.47084072,2049.2,2048.9,0.0011]
[1772072875337,0.001,2049.2,2048.9,0.46509683]
[1772072875514,0.46984072,2049.4,2048.9,0.0011]
[1772072876310,1.68971071,2049.4,2048.9,0.0011]
[1772072876512,0.46984072,2049.4,2048.9,0.0011]
[1772072878237,0.45820863,2049.3,2048.9,0.0011]
[1772072880534,0.45820863,2049.3,2048.9,0.46237096]
[1772072880735,0.45920863,2049.5,2048.9,0.46237096]
[1772072881429,1.67901881,2049.5,2048.9,0.46237096]
[1772072881626,0.45820863,2049.4,2048.9,0.0011]
[1772072883141,0.45820863,2049.4,2048.9,0.46237096]
[1772072883516,0.45920863,2049.5,2048.9,0.46237096]
[1772072883918,0.001,2049.5,2048.9,0.46237096]
[1772072885442,0.001,2049.5,2049.1,0.46127096]
[1772072886145,0.001,2049.3,2049.1,0.46127096]
[1772072886519,0.001,2049.5,2049.3,0.46127096]
[1772072886723,0.45920863,2049.9,2049.3,0.46127096]
[1772072887733,0.45920863,2049.9,2049.4,1.68114019]
[1772072888134,0.001,2049.9,2049.5,0.46127096]
[1772072888852,0.001,2049.9,2049.2,1.331]
[1772072888853,0.45820863,2049.8,2049.2,1.331]
[1772072889028,0.45820863,2049.8,2049.2,2.55098047]
[1772072889847,0.45820863,2049.8,2049.2,3.01225143]
[1772072890149,0.45820863,2049.8,2049.3,0.46127096]
[1772072892549,0.45820863,2049.7,2049.2,2.55098047]
[1772072892854,0.45820863,2049.7,2049.2,3.01225143]
[1772072895026,0.45920863,2049.9,2049.3,0.46127096]
[1772072895330,0.001,2049.9,2049.3,0.46127096]
[1772072895754,0.001,2049.9,2049.5,0.46127096]
[1772072896644,0.001,2049.9,2049.7,1.68094748]
[1772072897452,0.001,2049.9,2049.8,0.46127096]
[1772072898637,0.001,2049.9,2049.8,1.68090214]
[1772072901966,0.001,2050.3,2049.9,0.46127096]
[1772072902252,0.001,2050.3,2050.0,0.46127096]
[1772072902458,0.45920863,2050.3,2049.9,1.339]
[1772072902655,0.45820863,2050.2,2049.9,1.339]
[1772072903574,0.45920863,2050.3,2049.9,1.339]
[1772072903957,0.45820863,2050.2,2049.9,1.339]
[1772072904345,0.001,2050.3,2050.0,0.46127096]
[1772072904557,0.001,2050.3,2049.9,2.55857064]
[1772072907167,0.4791772,2050.3,2049.9,2.55857064]
[1772072907764,0.4791772,2050.3,2049.9,1.339]
[1772072908256,0.4791772,2050.3,2049.9,2.55856396]
[1772072908464,0.4791772,2050.3,2049.9,1.339]
[1772072908635,0.4781772,2050.2,2049.9,1.339]
[1772072910272,0.001,2050.1,2049.9,1.339]
[1772072911569,0.4791772,2050.1,2049.9,1.339]
[1772072914767,0.47946793,2050.0,2049.7,0.0011]
[1772072916457,0.47946793,2050.0,2049.5,0.0011]
[1772072918059,0.47946793,2049.8,2049.5,0.0011]
[1772072919669,0.47946793,2049.8,2049.2,0.0011]
[1772072919670,0.47946793,2049.7,2049.2,0.0011]
[1772072920198,0.47946793,2049.5,2049.2,0.0011]
[1772072922386,1.21972028,2049.7,2049.2,0.48676395]
[1772072922594,0.47946793,2049.6,2049.2,0.48676395]
[1772072922781,0.47946793,2049.6,2049.2,0.0011]
[1772072923583,0.47946793,2049.6,2048.9,0.0011]
[1772072924297,0.47946793,2049.4,2048.9,0.0011]
[1772072924659,0.47946793,2049.4,2049.1,0.0011]
[1772072925094,0.47946793,2049.4,2048.9,0.0011]
[1772072925894,0.47946793,2049.2,2048.9,0.0011]
[1772072926402,0.47946793,2049.0,2048.7,0.0011]
[1772072928364,0.47946793,2048.9,2048.7,0.0011]
[1772072928781,1.562,2049.3,2048.7,0.0011]
[1772072928782,0.47946793,2049.3,2048.7,0.0011]
[1772072928965,2.04346793,2049.3,2048.7,0.0011]
[1772072929182,0.47946793,2049.2,2048.7,0.0011]
[1772072930498,1.69945817,2049.2,2048.7,0.0011]
[1772072930675,0.47946793,2049.1,2048.7,0.0011]
[1772072932898,1.69951968,2049.1,2048.7,0.0011]
[1772072934699,0.47946793,2049.1,2048.7,0.0011]
[1772072935074,1.6995165,2049.1,2048.7,0.0011]
[1772072935275,1.22004857,2049.1,2048.7,0.0011]
[1772072935578,0.47946793,2049.0,2048.7,0.0011]
[1772072936280,0.47946793,2049.0,2048.9,0.0011]
[1772072937501,0.46576832,2049.2,2048.9,0.0011]
[1772072937799,1.68575934,2049.2,2048.9,0.0011]
[1772072938094,0.46576832,2049.2,2048.9,0.0011]
[1772072938798,1.68576367,2049.2,2048.9,0.0011]
[1772072939003,0.46576832,2049.1,2048.9,0.0011]
[1772072939595,0.46576832,2049.0,2048.7,0.0011]
[1772072941268,0.46576832,2049.0,2048.5,0.0011]
[1772072941472,0.46576832,2048.8,2048.2,0.0011]
[1772072944799,0.46576832,2048.6,2048.2,0.0011]
[1772072946898,1.68613904,2048.6,2048.2,0.0011]
[1772072947201,1.68613904,2048.6,2048.2,0.48844731]
[1772072947419,0.46576832,2048.6,2048.2,0.48844731]
[1772072947710,0.46576832,2048.8,2048.2,0.48844731]
[1772072947884,1.68579991,2049.2,2048.7,0.78801221]
[1772072948083,2.79095873,2049.3,2048.8,0.48734731]
[1772072948812,1.68567155,2049.4,2048.8,0.48734731]
[1772072949115,1.68567155,2049.4,2048.8,1.70756021]
[1772072949486,0.46576832,2049.3,2048.8,0.48734731]
[1772072950697,1.21990323,2049.4,2048.9,0.48734731]
[1772072951104,0.46576832,2049.3,2048.9,0.48734731]
[1772072951301,0.46576832,2049.3,2048.7,1.70758751]
[1772072952192,0.46576832,2049.3,2048.5,3.04371949]
[1772072952911,0.46576832,2049.3,2048.6,0.48734731]
[1772072954218,0.46576832,2049.1,2048.6,0.48734731]
[1772072954514,0.46576832,2049.1,2048.5,1.336]
[1772072955718,0.46576832,2049.1,2048.5,2.55639924]
[1772072955900,0.46576832,2049.1,2048.6,0.48734731]
[1772072956101,0.46576832,2049.1,2048.7,0.48734731]
[1772072958646,0.46576832,2049.1,2048.7,1.70761993]
[1772072959116,1.68582011,2049.1,2048.7,0.48734731]
[1772072959322,0.46576832,2049.0,2048.5,1.82334731]
[1772072959890,0.46576832,2049.0,2048.5,3.04374553]
[1772072960395,0.001,2048.9,2048.5,3.04374553]
[1772072961692,0.001,2048.9,2048.5,1.82334731]
[1772072961887,0.001,2048.9,2048.5,3.04374731]
[1772072962808,0.001,2048.9,2048.6,0.48734731]
[1772072963223,0.001,2048.9,2048.5,1.336]
[1772072963224,0.46676832,2048.9,2048.5,2.55639934]
[1772072963392,0.46676832,2048.9,2048.5,3.04374602]
[1772072963917,1.6869494,2048.9,2048.5,1.336]
[1772072964222,0.46576832,2048.8,2048.2,0.0011]
[1772072964717,0.46576832,2048.8,2048.1,0.0011]
[1772072965623,0.46576832,2048.6,2048.1,0.0011]
[1772072965994,0.46576832,2048.6,2048.1,0.4982221]
[1772072967711,1.68614529,2048.6,2048.1,0.4982221]
[1772072968611,0.46260976,2048.5,2048.1,0.0011]
[1772072969813,1.68307451,2048.4,2048.1,0.0011]
[1772072970326,0.46260976,2048.3,2048.1,0.0011]
[1772072971322,1.68305475,2048.5,2048.0,0.4982221]
[1772072971998,0.46260976,2048.4,2048.3,0.0011]
[1772072977037,0.49775846,2048.3,2048.0,0.0011]
[1772072979417,1.22058392,2048.2,2048.0,0.0011]
[1772072980319,0.49775846,2048.3,2048.0,0.0011]
[1772072980514,1.71828452,2048.3,2048.0,0.0011]
[1772072980728,0.49775846,2048.2,2048.0,0.0011]
[1772072981437,0.49775846,2048.1,2048.0,0.0011]
[1772072982509,1.22063063,2048.2,2048.0,0.0011]
[1772072982729,1.71838909,2048.2,2048.0,0.0011]
[1772072984033,1.71938909,2048.2,2048.0,0.0011]
[1772072985726,0.49775846,2048.1,2048.0,0.0011]
[1772072986135,1.71840198,2048.1,2048.0,0.0011]
[1772072988676,1.71807721,2048.7,2048.2,0.47263765]
[1772072988823,0.49775846,2048.6,2048.2,0.47263765]
[1772072991149,1.71816011,2048.6,2048.2,0.47263765]
[1772072995747,1.22040165,2048.6,2048.2,0.47263765]
[1772072996193,1.22040165,2048.6,2048.4,0.0011]
[1772072996318,1.71149464,2048.6,2048.4,0.0011]
[1772072996621,0.001,2048.5,2048.4,0.0011]
[1772072997529,0.001,2048.5,2048.4,0.49718933]
[1772072998239,0.001,2048.5,2048.2,0.16578417]
[1772072999351,1.22140517,2048.5,2048.2,0.16578417]
[1772072999538,0.001,2048.5,2048.2,0.16578417]
[1772073000344,0.001,2048.9,2048.4,0.16578361]
[1772073000549,0.001,2048.9,2048.7,0.16578361]
[1772073002787,0.49109299,2049.3,2048.9,0.16578307]
[1772073002984,0.49109299,2049.2,2048.5,0.1657828]
[1772073003843,0.49109299,2049.0,2048.5,0.16578254]
[1772073006255,0.49109299,2049.0,2048.6,0.16578202]
[1772073007377,1.71120465,2049.0,2048.6,0.16578202]
[1772073007584,0.49109299,2048.9,2048.6,0.16578202]
[1772073008183,0.49109299,2048.9,2048.7,0.0011]
[1772073008382,0.49209299,2048.9,2048.7,0.0011]
[1772073009584,0.001,2048.9,2048.7,0.0011]
[1772073009784,0.49209299,2048.9,2048.7,0.0011]
[1772073011720,0.49109299,2049.3,2048.8,0.16578053]
[1772073011997,5.3295693,2049.7,2049.1,0.16578053]
[1772073011998,0.49109299,2049.7,2049.1,0.16578053]
[1772073012198,0.49109299,2049.7,2049.2,0.61656744]
[1772073012493,0.49109299,2049.7,2049.2,0.16578053]
[1772073012860,0.49109299,2049.7,2049.2,1.83651008]
[1772073013056,0.49209299,2049.9,2049.4,0.6165672]
[1772073013393,0.49109299,2049.8,2049.4,0.16578029]
[1772073014473,0.49109299,2049.8,2049.3,0.16578005]
[1772073015205,0.001,2049.9,2049.4,0.16577982]
[1772073015706,0.49209299,2049.9,2049.4,0.16577982]
[1772073015889,0.001,2049.9,2049.4,0.16577982]
[1772073017407,0.001,2049.9,2049.5,1.38558906]
[1772073017909,0.001,2049.9,2049.6,0.16577914]
[1772073019076,0.49209299,2049.9,2049.4,1.3856222]
[1772073020186,0.49209299,2049.9,2049.5,0.1657787]
[1772073020387,0.001,2050.1,2049.6,2.10191197]
[1772073020586,0.001,2050.1,2049.7,0.1657787]
[1772073021811,0.001,2050.3,2049.7,0.16577826]
[1772073022194,0.49209299,2050.3,2049.9,0.16577826]
[1772073022800,0.49209299,2050.3,2049.4,2.71460679]
[1772073023232,0.49109299,2050.2,2049.4,1.329]
[1772073024018,0.49109299,2050.2,2049.4,2.71463759]
[1772073024203,0.49109299,2050.0,2049.4,1.329]
[1772073024599,0.49109299,2050.0,2049.4,2.71464449]
[1772073025417,0.49109299,2050.0,2049.4,1.49477784]
[1772073025808,0.49109299,2050.0,2049.1,4.88002523]
[1772073025809,0.49109299,2050.0,2049.1,1.22000235]
[1772073026018,0.49109299,2050.0,2049.0,6.37416538]
[1772073026019,0.49109299,2050.0,2049.0,2.71385394]
[1772073026245,1.21957168,2049.9,2049.0,2.71385394]
[1772073026425,0.48770803,2049.8,2049.0,2.71385394]
[1772073026640,0.48770803,2049.8,2049.0,1.328]
[1772073026641,0.48770803,2049.7,2049.0,1.328]
[1772073026801,0.48770803,2049.7,2049.0,2.548103]
[1772073027726,0.48770803,2049.7,2049.0,1.328]
[1772073028447,0.48770803,2049.5,2049.0,1.328]
[1772073028602,0.48770803,2049.5,2048.8,1.22018942]
[1772073029029,0.48770803,2049.5,2048.9,0.16577663]
[1772073029245,2.72366167,2049.9,2048.9,0.16577663]
[1772073029246,0.48770803,2049.8,2049.0,0.16577663]
[1772073030611,0.48770803,2049.6,2048.8,0.16577625]
[1772073031742,0.48770803,2050.1,2049.1,0.16577606]
[1772073032749,0.46065434,2049.9,2049.3,0.16577569]
[1772073033450,0.001,2049.7,2049.3,0.16577569]
[1772073033813,0.46065434,2049.9,2049.2,1.67039205]
[1772073033814,1.68014327,2050.1,2049.5,0.1657755]
[1772073034217,1.68014327,2050.1,2049.4,0.45040377]
[1772073034218,0.46065434,2050.0,2049.3,0.1647755]
[1772073035049,0.46065434,2050.0,2049.1,2.5471405]
[1772073035050,0.46065434,2049.8,2049.1,2.5471405]
[1772073035450,0.46065434,2049.8,2049.1,2.71191582]
[1772073035959,0.46065434,2049.8,2049.2,0.16477514]
[1772073038733,0.46065434,2049.7,2049.2,1.38474606]
[1772073039357,0.46065434,2049.7,2049.3,0.16477462]
[1772073039529,0.46065434,2049.9,2049.3,0.16477462]
[1772073040845,0.46065434,2050.1,2049.5,0.16477428]
[1772073041566,0.46065434,2050.1,2049.4,1.21986923]
[1772073041881,0.46065434,2050.1,2049.2,1.21998828]
[1772073042332,0.46065434,2050.1,2049.3,0.16477411]
[1772073042731,0.46065434,2050.1,2049.5,0.16477395]
[1772073043470,0.46165434,2050.3,2049.6,0.16477395]
[1772073043645,0.46065434,2050.2,2049.6,0.16477395]
[1772073044550,0.46065434,2050.2,2049.4,1.38464302]
[1772073045358,0.46065434,2050.0,2049.4,0.16477379]
[1772073045556,0.46065434,2050.0,2049.6,0.0011]
[1772073045933,0.46165434,2049.9,2049.6,0.0011]
[1772073046168,0.001,2049.9,2049.6,0.0011]
[1772073046466,0.46165434,2049.9,2049.6,0.0011]
[1772073046840,0.46165434,2049.9,2049.4,0.0011]
[1772073047647,0.46065434,2049.7,2049.4,0.0011]
[1772073049943,0.46165434,2049.9,2049.4,0.0011]
[1772073051440,0.46065434,2049.8,2049.4,0.0011]
[1772073051935,0.46065434,2049.6,2049.4,0.0011]
[1772073054460,0.46065434,2049.8,2049.4,0.0011]
[1772073056649,0.46065434,2049.8,2049.4,1.22096923]
[1772073058382,0.46065434,2049.8,2049.6,0.0011]
[1772073059574,1.577,2050.2,2049.6,0.263393]
[1772073059743,2.04374372,2050.2,2049.6,0.263393]
[1772073060153,1.577,2050.2,2049.6,0.263393]
[1772073060683,0.46674372,2050.1,2049.6,0.263393]
[1772073060886,0.46674372,2050.1,2049.6,0.0011]
[1772073061400,0.46774372,2050.3,2049.7,1.48198342]
[1772073062288,0.46674372,2050.2,2049.7,1.48198342]
[1772073062663,0.46674372,2050.2,2049.8,0.26229248]
[1772073063390,0.001,2050.3,2049.9,1.21957168]
[1772073063580,0.46774372,2050.3,2049.9,1.21957168]
[1772073064262,0.001,2050.3,2049.9,1.48186403]
[1772073064768,0.001,2050.3,2050.0,0.26229235]
[1772073065271,0.46774372,2050.3,2049.9,1.21957168]
[1772073066778,0.46774372,2050.3,2049.9,1.48186365]
[1772073066975,0.001,2050.6,2049.9,1.48186365]
[1772073066976,0.001,2050.6,2050.2,0.26229197]
[1772073067475,0.001,2050.6,2050.3,1.21933375]
[1772073068167,0.001,2050.6,2050.4,0.26229185]
[1772073068586,0.001,2050.6,2050.2,1.48163903]
[1772073068794,0.46774372,2050.6,2050.0,2.80578176]
[1772073068975,0.46774372,2050.6,2049.9,1.21954883]
[1772073069287,0.46774372,2050.6,2050.0,0.26229173]
[1772073069691,0.46774372,2050.6,2050.1,1.2194527]
[1772073069871,0.46774372,2050.6,2050.1,1.2205527]
[1772073070288,0.001,2050.4,2050.1,1.2205527]
[1772073071570,0.001,2050.4,2050.1,0.0011]
[1772073071770,0.46774372,2050.4,2050.1,0.0011]
[1772073073894,0.46674372,2050.3,2050.1,0.0011]
[1772073074482,0.46674372,2050.3,2049.9,0.0011]
[1772073074995,0.46674372,2050.2,2049.9,0.0011]
[1772073075899,0.46774372,2050.4,2049.9,0.26449093]
[1772073077198,0.001,2050.4,2049.9,1.76511983]
[1772073077383,0.001,2050.4,2050.0,0.26339082]
[1772073079506,0.001,2050.4,2050.1,1.2194527]
[1772073079693,0.46774372,2050.4,2049.9,1.22062761]
[1772073082201,0.001,2050.6,2050.2,0.0011]
[1772073083487,0.001,2050.6,2050.2,0.49848922]
[1772073083691,0.001,2050.6,2050.2,1.71787981]
[1772073084908,0.001,2050.6,2050.3,0.49738922]
[1772073085792,0.001,2050.6,2050.3,1.71666592]
[1772073086328,0.001,2050.6,2050.4,0.45879076]
[1772073088410,0.457867,2051.6,2050.6,30.0]
[1772073088703,0.457867,2051.9,2051.0,0.45879076]
[1772073089075,0.457867,2051.9,2051.2,0.45879076]
[1772073089275,0.457867,2051.9,2051.3,0.45879076]
[1772073090292,0.457867,2051.9,2051.4,1.67747068]
[1772073090706,1.21832941,2052.0,2051.4,1.67747068]
[1772073090890,6.44291674,2052.2,2051.4,1.67747068]
[1772073090891,0.457867,2052.2,2051.5,0.45879076]
[1772073094120,0.457867,2052.2,2051.6,0.46937959]
[1772073094319,1.67607485,2052.2,2051.6,0.46937959]
[1772073094727,0.001,2051.7,2051.4,1.68802727]
[1772073095590,0.001,2051.7,2051.5,0.46743499]
[1772073096016,1.68829313,2052.3,2051.7,1.21850173]
[1772073096425,1.50062901,2052.8,2052.1,0.46937959]
[1772073096426,0.4701088,2052.8,2052.1,0.46937959]
[1772073096590,1.68799767,2052.8,2052.1,0.46937959]
[1772073096789,0.4701088,2052.7,2052.1,0.46937959]
[1772073097596,4.87068565,2053.1,2052.1,0.46937959]
[1772073097597,0.4701088,2053.4,2052.5,0.46937959]
[1772073097797,0.4701088,2053.4,2052.7,1.50062901]
[1772073098199,1.21755223,2053.3,2052.7,1.50062901]
[1772073098419,0.4701088,2053.2,2052.7,1.50062901]
[1772073098721,0.4701088,2053.8,2052.7,3.18790701]
[1772073098898,0.4701088,2053.8,2052.8,0.46937959]
[1772073099419,0.4701088,2053.8,2052.8,1.68722838]
[1772073099620,0.4701088,2053.8,2052.8,1.21784879]
[1772073100126,0.4701088,2053.8,2052.6,1.68731064]
[1772073100324,0.4701088,2053.8,2052.3,1.21814549]
[1772073100325,0.4701088,2053.3,2052.3,1.21814549]
[1772073100524,0.4701088,2053.1,2052.3,1.21814549]
[1772073101210,0.4701088,2053.1,2052.2,1.329]
[1772073101413,0.4701088,2053.0,2052.1,1.21823526]
[1772073102101,0.4701088,2053.0,2052.1,1.68761485]
[1772073102896,0.4701088,2053.0,2052.2,1.9700086]
[1772073103619,0.4701088,2053.0,2052.3,0.46937959]
[1772073103872,0.4701088,2053.0,2052.1,1.21823526]
[1772073103873,0.4701088,2052.9,2052.1,1.21823526]
[1772073104551,1.68789855,2052.9,2052.1,1.21823526]
[1772073104701,0.4701088,2052.8,2052.1,1.21823526]
[1772073105615,0.4701088,2052.8,2052.2,0.46937959]
[1772073106106,0.4701088,2052.8,2052.1,1.21823526]
[1772073106526,0.001,2052.6,2052.1,1.21823526]
[1772073106729,0.001,2052.6,2052.2,0.46937959]
[1772073107825,0.4701088,2053.1,2052.3,0.46937959]
[1772073108215,1.21758958,2053.3,2052.5,0.46937959]
[1772073108216,0.4701088,2053.3,2052.5,0.46937959]
[1772073108413,0.4701088,2053.3,2052.6,1.21796745]
[1772073108617,0.4701088,2053.3,2052.7,0.46937959]
[1772073109225,0.4701088,2053.5,2052.7,0.46937959]
[1772073109925,0.4701088,2053.5,2052.6,1.21796745]
[1772073110298,0.4701088,2053.4,2052.6,1.21796745]
[1772073110497,0.4701088,2053.4,2052.5,1.21798568]
[1772073110720,0.4701088,2053.2,2052.5,1.21798568]
[1772073113227,0.4701088,2053.2,2052.5,1.68736527]
[1772073113627,0.4701088,2053.2,2052.6,0.46937959]
[1772073113851,0.4701088,2053.6,2052.7,0.46763073]
[1772073114247,0.4701088,2053.4,2052.5,1.68736527]
[1772073115130,0.33535673,2053.7,2052.6,0.46937959]
[1772073115337,0.33535673,2053.6,2052.7,0.46937959]
[1772073116220,0.33535673,2053.6,2052.6,1.328]
[1772073116846,0.33535673,2053.6,2052.6,1.80931243]
[1772073117056,1.55279017,2053.5,2052.8,1.69916122]
[1772073117247,0.33535653,2053.4,2052.8,1.69916122]
[1772073118630,0.3353564,2053.6,2052.9,0.48131243]
[1772073119147,0.3353564,2053.6,2053.0,1.21773015]
[1772073119346,0.001,2053.4,2053.0,1.21773015]
[1772073120047,0.001,2053.4,2053.0,1.69904258]
[1772073120248,1.559,2053.8,2053.0,1.21773015]
[1772073120451,1.559,2053.8,2053.3,0.48131243]
[1772073121235,4.867845,2054.3,2053.3,0.48131243]
[1772073121236,0.33635627,2054.1,2053.4,1.69880536]
[1772073121433,0.33635627,2054.1,2053.5,0.48131243]
[1772073121627,0.33635627,2054.4,2053.8,0.48131243]
[1772073122539,1.21684593,2054.5,2053.8,0.48131243]
[1772073123457,0.33635615,2054.4,2053.6,3.03267176]
[1772073123656,1.55320201,2054.5,2053.7,0.48131243]
[1772073123832,0.33635608,2054.4,2053.7,0.48131243]
[1772073124435,0.33635608,2054.4,2053.6,2.55137345]
[1772073124635,0.33635608,2054.4,2053.7,0.48131243]
[1772073125251,0.3379293,2054.6,2053.9,0.48131243]
[1772073125562,1.558,2054.7,2053.9,0.48131243]
[1772073125859,1.5544499,2055.1,2054.1,0.48131243]
[1772073126062,1.5544499,2055.1,2054.2,0.48131243]
[1772073126268,0.33792924,2055.0,2054.2,0.48131243]
[1772073126428,0.33792924,2055.0,2054.1,1.336]
[1772073126632,0.33792924,2055.0,2053.9,0.48131243]
[1772073126832,0.33792924,2055.0,2053.7,3.03359088]
[1772073126833,0.33792918,2054.9,2053.7,3.03359088]
[1772073127739,0.33792912,2054.7,2053.7,1.81631243]
[1772073128060,0.33792912,2054.7,2053.8,0.48131243]
[1772073131867,1.55471075,2054.6,2053.8,1.69855986]
[1772073132036,1.55471075,2054.6,2053.9,0.48131243]
[1772073132654,1.55471075,2054.6,2053.9,0.48241243]
[1772073132945,1.5546346,2054.8,2053.9,0.48241243]
[1772073134090,1.5546346,2054.8,2054.0,1.21713729]
[1772073134385,1.5546346,2054.8,2054.1,0.48131243]
[1772073135163,0.33792873,2054.7,2054.1,0.48131243]
[1772073135363,0.33792873,2055.2,2054.0,0.48131243]
[1772073135575,0.33792873,2055.2,2053.9,1.21829478]
[1772073135576,1.21648581,2055.1,2054.2,0.48131243]
[1772073135889,2.17441873,2055.8,2053.9,1.21829478]
[1772073135890,0.33792868,2055.5,2054.5,0.48131243]
[1772073136071,0.139685,2056.1,2055.0,0.48131243]
[1772073136072,1.55410246,2055.7,2055.0,0.48131243]
[1772073136447,1.21605314,2055.9,2055.0,0.48131243]
[1772073136953,1.21598663,2056.0,2055.0,0.48131243]
[1772073137348,0.139685,2056.1,2055.3,0.48131243]
[1772073137555,1.35558522,2056.1,2055.3,0.48131243]
[1772073137753,0.33792857,2056.0,2055.0,0.48131243]
[1772073137983,1.35558522,2056.1,2054.9,1.334]
[1772073137984,1.35558522,2056.1,2055.1,0.48131243]
[1772073138177,0.33792857,2056.0,2055.1,0.48131243]
[1772073138677,1.35558522,2056.1,2055.2,0.48131243]
[1772073139187,1.35558522,2056.1,2054.9,0.48131243]
[1772073139188,0.33792852,2056.0,2054.9,0.48131243]
[1772073139584,0.33792852,2055.8,2054.9,0.48131243]
[1772073139882,0.33792852,2055.8,2054.6,1.21674819]
[1772073139883,0.33792847,2055.6,2054.3,0.48131243]
[1772073140098,0.33792847,2055.4,2054.4,0.48131243]
[1772073140256,1.21636744,2055.3,2054.5,0.48131243]
[1772073140453,2.09249873,2055.7,2054.1,6.2022514]
[1772073140454,5.34138476,2056.1,2055.0,0.48131243]
[1772073140654,1.35561486,2056.1,2055.2,2.09249873]
[1772073141006,1.35561486,2056.1,2055.3,0.48131243]
[1772073141460,1.69354328,2056.1,2055.3,0.48131243]
[1772073141853,1.35561486,2056.1,2055.3,0.48131243]
[1772073142293,1.35561486,2056.1,2055.4,0.48131243]
[1772073143195,1.35561486,2056.1,2055.0,2.09249873]
[1772073143196,0.33792832,2056.0,2055.0,0.48131243]
[1772073143493,1.35561486,2056.1,2055.0,0.48131243]
[1772073144470,1.35561486,2056.1,2055.2,0.48131243]
[1772073144663,1.35559191,2056.1,2055.4,0.48131243]
[1772073145687,0.33792817,2056.0,2055.0,1.333]
[1772073145892,0.33792813,2055.7,2055.0,1.333]
[1772073146198,0.33792813,2055.7,2054.6,0.4554069]
[1772073146573,1.55411805,2055.6,2054.6,0.4554069]
[1772073146971,0.33792808,2055.5,2054.6,0.4554069]
[1772073147170,0.33792808,2055.5,2054.3,0.4554069]
[1772073147985,1.21618992,2055.6,2054.3,0.4554069]
[1772073148382,1.55411795,2055.6,2054.3,0.4554069]
[1772073148585,1.55423629,2055.4,2054.3,0.4554069]
[1772073148984,0.33792799,2055.3,2054.3,0.4554069]
[1772073150514,1.55435456,2055.2,2054.4,0.4554069]
[1772073150808,0.33792794,2055.1,2054.0,0.4554069]
[1772073151010,1.21642662,2055.2,2054.0,0.4554069]
[1772073151782,1.21642662,2055.2,2054.2,0.4554069]
[1772073151981,1.21642662,2055.2,2053.9,2.54926805]
[1772073151982,0.001,2055.9,2055.2,0.4554069]
[1772073152184,0.001,2055.9,2054.3,30.0]
[1772073152185,1.21702997,2055.9,2055.4,0.4554069]
[1772073152407,4.86334014,2056.4,2055.4,0.4554069]
[1772073152607,0.33792781,2056.4,2055.4,0.4554069]
[1772073153006,0.33792781,2056.4,2055.4,1.6717088]
[1772073153189,4.86242808,2056.6,2055.5,0.48294064]
[1772073153512,5.15055845,2056.7,2055.5,0.48294064]
[1772073153689,0.33792777,2056.6,2055.5,0.48294064]
[1772073154708,1.21565767,2056.5,2055.5,0.48294064]
[1772073154905,1.571,2056.4,2055.5,0.48294064]
[1772073155512,1.571,2056.4,2054.5,3.03878172]
[1772073155513,0.33792768,2056.1,2054.5,3.03878172]
[1772073155708,0.33792768,2056.1,2054.6,30.0]
[1772073156200,0.33792768,2056.1,2054.7,2.084]
[1772073156593,0.28792768,2056.1,2054.7,2.084]
[1772073157214,1.2159533,2056.0,2054.8,1.69960406]
[1772073157416,1.5038809,2056.0,2054.8,1.69960406]
[1772073158096,0.28792756,2055.7,2054.8,0.48294064]
[1772073159017,0.28792756,2055.7,2055.0,0.001]
[1772073159221,1.21618992,2055.6,2055.0,0.001]
[1772073159589,1.50411744,2055.6,2055.0,0.001]
[1772073160111,1.21618992,2055.6,2055.0,0.001]
[1772073160821,0.28792744,2055.5,2055.0,0.001]
[1772073161117,0.28792744,2055.5,2054.6,0.48294064]
[1772073161301,1.21630826,2055.4,2054.6,0.48294064]
[1772073161503,1.21630826,2055.4,2054.7,0.48294064]
[1772073162593,4.86452809,2055.7,2054.7,0.48294064]
[1772073162594,1.21613075,2055.7,2054.7,0.48294064]
[1772073163404,1.21613075,2055.7,2054.7,1.69962669]
[1772073163405,1.50305811,2055.7,2054.7,1.69962669]
[1772073163726,1.50305811,2055.7,2054.7,0.48294064]
[1772073163727,0.28692736,2055.6,2054.7,0.48294064]
[1772073165120,0.23692736,2055.6,2054.7,0.48294064]
[1772073165551,2.09249873,2055.4,2054.1,0.48294064]
[1772073165725,0.23692725,2055.2,2054.1,0.48294064]
[1772073165925,1.565,2055.3,2054.1,0.48294064]
[1772073167649,1.21642662,2055.2,2054.2,1.21701879]
[1772073167826,1.21642662,2055.2,2054.3,0.48294064]
[1772073168620,0.23692718,2055.1,2054.3,0.48294064]
[1772073169743,1.21654501,2055.0,2054.3,0.48294064]
[1772073171562,0.23692707,2054.9,2054.0,0.48294064]
[1772073171859,1.45364966,2054.7,2054.0,0.48294064]
[1772073172558,1.45364966,2054.7,2054.5,0.0011]
[1772073172763,1.45364966,2054.7,2054.0,0.48294064]
[1772073172969,1.45364966,2054.7,2054.0,0.48404064]
[1772073175882,0.23692687,2054.6,2054.0,0.0011]
[1772073176470,1.21684108,2054.5,2054.0,0.45812588]
[1772073177260,1.45376792,2054.5,2054.0,0.0011]
[1772073177569,1.21684108,2054.5,2054.0,0.0011]
[1772073178966,4.86736432,2054.6,2054.0,0.0011]
[1772073179149,0.23692677,2054.5,2054.0,0.0011]
[1772073180058,4.86736432,2054.6,2054.0,0.45812588]